fUST/lending_fUST_20240725
["ID","MTS","AMOUNT","RATE_DAILY","PERIOD"]
[333081387,1721848240417,-1369.34,0.00013698,2]
[333081388,1721848240430,-1579.31,0.00013698,2]
[333081389,1721848240440,-500.0,0.00013698,2]
[333081390,1721848240449,-500.0,0.00013698,2]
[333081391,1721848240459,-500.0,0.00013698,2]
[333081392,1721848240471,-500.0,0.00013698,2]
[333081394,1721848240486,-1028.89,0.00013698,2]
[333081395,1721848240496,-500.0,0.00013698,2]
[333081396,1721848240505,-500.0,0.00013698,2]
[333081397,1721848240514,-500.0,0.00013698,2]
[333081398,1721848240523,-500.0,0.00013698,2]
[333081399,1721848240532,-500.0,0.00013698,2]
[333081400,1721848240541,-500.0,0.00013698,2]
[333081401,1721848240550,-500.0,0.00013698,2]
[333081402,1721848240560,-695.51,0.00013698,2]
[333081403,1721848240570,-648.43,0.00013698,2]
[333081404,1721848240580,-500.0,0.00013698,2]
[333081405,1721848240589,-505.25,0.00013698,2]
[333081407,1721848240599,-500.0,0.00013698,2]
[333081408,1721848240608,-500.0,0.00013698,2]
[333081410,1721848240618,-1656.58,0.00013698,2]
[333081411,1721848240628,-1824.45,0.00013698,2]
[333081412,1721848240637,-500.0,0.00013698,2]
[333081413,1721848240647,-500.0,0.00013698,2]
[333081414,1721848240658,-500.0,0.00013698,2]
[333081415,1721848240670,-984.16,0.00013698,2]
[333081416,1721848240681,-500.0,0.00013698,2]
[333081417,1721848240691,-530.50680164,0.00013698,2]
[333081418,1721848240700,-500.0,0.00013698,2]
[333081419,1721848240711,-500.0,0.00013698,2]
[333081420,1721848240721,-1520.4,0.00013698,2]
[333081421,1721848240731,-500.0,0.00013698,2]
[333081423,1721848240741,-500.0,0.00013698,2]
[333081424,1721848240751,-712.45,0.00013698,2]
[333081425,1721848240760,-500.0,0.00013698,2]
[333081426,1721848240770,-1587.24,0.00013698,2]
[333081427,1721848240779,-500.0,0.00013698,2]
[333081428,1721848240789,-500.0,0.00013698,2]
[333081429,1721848240799,-521.9,0.00013698,2]
[333081430,1721848240809,-500.0,0.00013698,2]
[333081431,1721848240819,-500.0,0.00013698,2]
[333081432,1721848240829,-656.66,0.00013698,2]
[333081433,1721848240839,-779.58,0.00013698,2]
[333081434,1721848240849,-530.71,0.00013698,2]
[333081435,1721848240859,-500.0,0.00013698,2]
[333081436,1721848240868,-500.0,0.00013698,2]
[333081437,1721848240878,-549.87,0.00013698,2]
[333081438,1721848240890,-500.0,0.00013698,2]
[333081439,1721848240901,-500.0,0.00013698,2]
[333081440,1721848240911,-500.0,0.00013698,2]
[333081441,1721848240921,-500.0,0.00013698,2]
[333081442,1721848240932,-504.60222625,0.00013698,2]
[333081443,1721848240941,-652.79,0.00013698,2]
[333081444,1721848240951,-500.0,0.00013698,2]
[333081445,1721848240960,-500.0,0.00013698,2]
[333081446,1721848240969,-1699.57,0.00013698,2]
[333081447,1721848240982,-1179.92,0.00013698,2]
[333081448,1721848240993,-2171.34,0.00013698,2]
[333081449,1721848241003,-1387.81,0.00013698,2]
[333081450,1721848241013,-500.0,0.00013698,2]
[333081451,1721848241022,-2008.3,0.00013698,2]
[333081452,1721848241032,-617.23,0.00013698,2]
[333081453,1721848241041,-500.0,0.00013698,2]
[333081454,1721848241050,-500.0,0.00013698,2]
[333081455,1721848241060,-500.0,0.00013698,2]
[333081456,1721848241070,-500.0,0.00013698,2]
[333081457,1721848241079,-798.1,0.00013698,2]
[333081458,1721848241089,-500.0,0.00013698,2]
[333081459,1721848241099,-500.0,0.00013698,2]
[333081460,1721848241109,-500.0,0.00013698,2]
[333081461,1721848241119,-500.0,0.00013698,2]
[333081462,1721848241129,-500.0,0.00013698,2]
[333081463,1721848241139,-2025.58,0.00013698,2]
[333081464,1721848241148,-500.0,0.00013698,2]
[333081465,1721848241158,-723.77,0.00013698,2]
[333081466,1721848241169,-2323.19,0.00013698,2]
[333081467,1721848241179,-500.0,0.00013698,2]
[333081468,1721848241190,-598.67,0.00013698,2]
[333081469,1721848241199,-500.0,0.00013698,2]
[333081470,1721848241209,-374.31411848,0.00013698,2]
[333081471,1721848241219,-4404.28,0.00013698,2]
[333081472,1721848241228,-500.0,0.00013698,2]
[333081473,1721848241238,-10454.79,0.00013698,2]
[333081474,1721848241250,-737.83,0.00013698,2]
[333081475,1721848241259,-1394.13,0.00013698,2]
[333081476,1721848241269,-500.0,0.00013698,2]
[333081477,1721848241278,-1673.72,0.00013698,2]
[333081478,1721848241288,-2341.68,0.00013698,2]
[333081479,1721848241298,-500.0,0.00013698,2]
[333081480,1721848241307,-1044.5,0.00013698,2]
[333081481,1721848241317,-884.56,0.00013698,2]
[333081482,1721848241327,-500.0,0.00013698,2]
[333081483,1721848241337,-500.0,0.00013698,2]
[333081484,1721848241347,-500.0,0.00013698,2]
[333081485,1721848241357,-500.0,0.00013698,2]
[333081486,1721848241366,-733.27,0.00013698,2]
[333081487,1721848241376,-500.0,0.00013698,2]
[333081488,1721848241387,-5788.53,0.00013698,2]
[333081489,1721848241396,-5788.53,0.00013698,2]
[333081490,1721848241406,-5788.53,0.00013698,2]
[333081491,1721848241415,-5788.53,0.00013698,2]
[333081492,1721848241425,-5788.53,0.00013698,2]
[333081493,1721848241599,-5788.53,0.00013698,2]
[333081494,1721848241610,-5788.53,0.00013698,2]
[333081495,1721848241620,-5788.53,0.00013698,2]
[333081496,1721848241629,-5788.53,0.00013698,2]
[333081497,1721848241639,-2930.93,0.00013698,2]
[333081498,1721848241649,-500.0,0.00013698,2]
[333081499,1721848241659,-500.0,0.00013698,2]
[333081500,1721848241669,-1837.91,0.00013698,2]
[333081501,1721848241680,-500.0,0.00013698,2]
[333081502,1721848241689,-831.54,0.00013698,2]
[333081503,1721848241699,-500.0,0.00013698,2]
[333081504,1721848241709,-545.85,0.00013698,2]
[333081505,1721848241718,-500.0,0.00013698,2]
[333081506,1721848241728,-500.0,0.00013698,2]
[333081507,1721848241739,-500.0,0.00013698,2]
[333081508,1721848241748,-500.0,0.00013698,2]
[333081509,1721848241759,-1617.6,0.00013698,2]
[333081510,1721848241768,-500.0,0.00013698,2]
[333081511,1721848241777,-3940.69,0.00013698,2]
[333081512,1721848241787,-500.0,0.00013698,2]
[333081513,1721848241796,-500.0,0.00013698,2]
[333081514,1721848241807,-500.0,0.00013698,2]
[333081515,1721848241816,-500.0,0.00013698,2]
[333081516,1721848241826,-245.497927,0.00013698,2]
[333081517,1721848241835,-697.14,0.00013698,2]
[333081518,1721848241844,-2773.96,0.00013698,2]
[333081519,1721848241854,-500.0,0.00013698,2]
[333081520,1721848241864,-500.0,0.00013698,2]
[333081521,1721848241874,-516.42469456,0.00013698,2]
[333081522,1721848241884,-662.28,0.00013698,2]
[333081523,1721848241894,-500.0,0.00013698,2]
[333081524,1721848241907,-504.59,0.00013698,2]
[333081525,1721848241917,-440.50180681,0.00013698,2]
[333081526,1721848241927,-6581.99,0.00013698,2]
[333081527,1721848241939,-2421.84,0.00013698,2]
[333081528,1721848241949,-1071.99,0.00013698,2]
[333081529,1721848241960,-775.38,0.00013698,2]
[333081530,1721848241970,-500.0,0.00013698,2]
[333081531,1721848241980,-500.0,0.00013698,2]
[333081532,1721848241989,-2736.71,0.00013698,2]
[333081533,1721848241999,-3002.09,0.00013698,2]
[333081534,1721848242009,-4063.2,0.00013698,2]
[333081535,1721848242018,-500.0,0.00013698,2]
[333081536,1721848242027,-10382.21,0.00013698,2]
[333081537,1721848242037,-619.02,0.00013698,2]
[333081538,1721848242046,-500.0,0.00013698,2]
[333081539,1721848242055,-500.0,0.00013698,2]
[333081540,1721848242065,-481.14625723,0.00013698,2]
[333081541,1721848242074,-733.75,0.00013698,2]
[333081542,1721848242084,-500.0,0.00013698,2]
[333081543,1721848242093,-582.43,0.00013698,2]
[333081544,1721848242103,-500.0,0.00013698,2]
[333081545,1721848242112,-500.0,0.00013698,2]
[333081546,1721848242122,-1579.47,0.00013698,2]
[333081547,1721848242131,-1859.31,0.00013698,2]
[333081548,1721848242141,-791.29,0.00013698,2]
[333081549,1721848242151,-1825.95,0.00013698,2]
[333081550,1721848242160,-1907.56,0.00013698,2]
[333081551,1721848242170,-822.17,0.00013698,2]
[333081552,1721848242181,-4349.14,0.00013698,2]
[333081553,1721848242191,-500.0,0.00013698,2]
[333081554,1721848242200,-1052.95,0.00013698,2]
[333081555,1721848242209,-500.0,0.00013698,2]
[333081556,1721848242219,-500.0,0.00013698,2]
[333081557,1721848242228,-500.0,0.00013698,2]
[333081558,1721848242237,-500.0,0.00013698,2]
[333081559,1721848242246,-500.0,0.00013698,2]
[333081560,1721848242256,-1196.34,0.00013698,2]
[333081561,1721848242265,-500.0,0.00013698,2]
[333081562,1721848242274,-500.0,0.00013698,2]
[333081563,1721848242283,-1264.25,0.00013698,2]
[333081564,1721848242293,-1214.08,0.00013698,2]
[333081565,1721848242303,-471.06056895,0.00013698,2]
[333081566,1721848242313,-500.0,0.00013698,2]
[333081567,1721848242322,-1568.27,0.00013698,2]
[333081568,1721848242332,-1279.12,0.00013698,2]
[333081569,1721848242342,-366.29564877,0.00013698,2]
[333081570,1721848242351,-684.65,0.00013698,2]
[333081571,1721848242361,-8045.59,0.00013698,2]
[333081572,1721848242370,-500.0,0.00013698,2]
[333081573,1721848242380,-500.0,0.00013698,2]
[333081574,1721848242389,-500.0,0.00013698,2]
[333081575,1721848242398,-4315.69,0.00013698,2]
[333081576,1721848242408,-500.0,0.00013698,2]
[333081577,1721848242418,-1469.84,0.00013698,2]
[333081578,1721848242429,-500.0,0.00013698,2]
[333081579,1721848242439,-5978.25,0.00013698,2]
[333081580,1721848242448,-387.96238467,0.00013698,2]
[333081581,1721848242459,-500.0,0.00013698,2]
[333081582,1721848242468,-500.0,0.00013698,2]
[333081583,1721848242477,-155.0920539,0.00013698,2]
[333081584,1721848242487,-500.0,0.00013698,2]
[333081585,1721848242496,-647.59975106,0.00013698,2]
[333081586,1721848242506,-500.0,0.00013698,2]
[333081587,1721848242515,-404.85122163,0.00013698,2]
[333081588,1721848242525,-500.0,0.00013698,2]
[333081589,1721848242534,-647.59975106,0.00013698,2]
[333081590,1721848242543,-500.0,0.00013698,2]
[333081591,1721848242553,-643.3553404,0.00013698,2]
[333081592,1721848242563,-500.0,0.00013698,2]
[333081593,1721848242573,-500.0,0.00013698,2]
[333081594,1721848242582,-647.59975106,0.00013698,2]
[333081595,1721848242592,-500.0,0.00013698,2]
[333081596,1721848242601,-647.59975106,0.00013698,2]
[333081597,1721848242610,-500.0,0.00013698,2]
[333081598,1721848242619,-647.59975106,0.00013698,2]
[333081599,1721848242629,-647.59975106,0.00013698,2]
[333081600,1721848242638,-500.0,0.00013698,2]
[333081601,1721848242648,-500.0,0.00013698,2]
[333081602,1721848242657,-647.59975106,0.00013698,2]
[333081603,1721848242667,-500.0,0.00013698,2]
[333081604,1721848242676,-647.59975106,0.00013698,2]
[333081605,1721848242686,-647.59975106,0.00013698,2]
[333081606,1721848242695,-500.0,0.00013698,2]
[333081607,1721848242705,-500.0,0.00013698,2]
[333081608,1721848242715,-293.3069335,0.00013698,2]
[333081609,1721848242724,-500.0,0.00013698,2]
[333081610,1721848242733,-500.0,0.00013698,2]
[333081611,1721848242743,-500.0,0.00013698,2]
[333081612,1721848242752,-500.0,0.00013698,2]
[333081613,1721848242762,-500.0,0.00013698,2]
[333081614,1721848242771,-375.4855311,0.00013698,2]
[333081615,1721848242780,-500.0,0.00013698,2]
[333081616,1721848242790,-500.0,0.00013698,2]
[333081617,1721848242799,-647.59975106,0.00013698,2]
[333081618,1721848242808,-500.0,0.00013698,2]
[333081619,1721848242817,-500.0,0.00013698,2]
[333081620,1721848242827,-500.0,0.00013698,2]
[333081621,1721848242836,-500.0,0.00013698,2]
[333081622,1721848242845,-500.0,0.00013698,2]
[333081623,1721848242856,-500.0,0.00013698,2]
[333081624,1721848242865,-500.0,0.00013698,2]
[333081625,1721848242874,-153.0,0.00013699,2]
[333081626,1721848242883,-1017.398271,0.00013699,2]
[333081627,1721848242893,-3000.0,0.00013699,2]
[333081628,1721848242904,-150.112233,0.000137,2]
[333081629,1721848242913,-150.112233,0.000137,2]
[333081630,1721848242922,-151.0,0.00013703,2]
[333081631,1721848242933,-253.13368046,0.00013782,2]
[333081632,1721848242942,-150.112233,0.000138,2]
[333081633,1721848242951,-1199.58886922,0.00013871,2]
[333081634,1721848242961,-150.112233,0.000139,2]
[333081635,1721848242970,-150.112233,0.000139,2]
[333081636,1721848242980,-2000.0,0.00013928,2]
[333081637,1721848242989,-2000.0,0.00013937,2]
[333081638,1721848242998,-2000.0,0.00013946,2]
[333081639,1721848243008,-5788.53,0.0001395,2]
[333081640,1721848243017,-151.0,0.0001395,2]
[333081641,1721848243027,-151.0,0.0001395,2]
[333081642,1721848243037,-151.0,0.0001395,2]
[333081643,1721848243047,-2000.0,0.00013954,2]
[333081644,1721848243056,-9477.20203362,0.00013961,2]
[333081645,1721848243066,-5788.53,0.00013961,2]
[333081646,1721848243076,-18954.4040672,0.00013962,2]
[333081647,1721848243085,-151.0,0.00013962,2]
[333081649,1721848243095,-151.0,0.00013962,2]
[333081651,1721848243104,-151.0,0.00013962,2]
[333081652,1721848243113,-183.20573,0.00013962,2]
[333081653,1721848243123,-183.20573,0.00013962,2]
[333081654,1721848243131,-370.718604,0.00013962,2]
[333081655,1721848243141,-370.718604,0.00013962,2]
[333081656,1721848243150,-23693.0050841,0.00013962,2]
[333081657,1721848243160,-151.0,0.00013963,2]
[333081658,1721848243169,-2000.0,0.00013963,2]
[333081659,1721848243179,-166586.45542303,0.00013971,5]
[333081660,1721848243189,-151.0,0.00013971,2]
[333081661,1721848243199,-151.0,0.00013971,2]
[333081662,1721848243208,-5788.53,0.00013971,2]
[333081663,1721848243217,-5788.53,0.00013971,2]
[333081664,1721848243227,-5788.53,0.00013971,2]
[333081665,1721848243236,-5788.53,0.00013971,2]
[333081666,1721848243245,-5788.53,0.00013971,2]
[333081667,1721848243255,-5788.53,0.00013971,2]
[333081668,1721848243264,-5788.53,0.00013971,2]
[333081669,1721848243273,-5788.53,0.00013971,2]
[333081670,1721848243282,-5788.53,0.00013971,2]
[333081671,1721848243292,-5788.53,0.00013971,2]
[333081672,1721848243301,-5788.53,0.00013971,2]
[333081674,1721848243311,-5788.53,0.00013971,2]
[333081675,1721848243320,-5788.6155338,0.00013971,2]
[333081676,1721848243329,-151.0,0.00013971,2]
[333081678,1721848243339,-151.0,0.00013971,2]
[333081680,1721848243349,-151.0,0.00013971,2]
[333081681,1721848243358,-1143.06505084,0.00013972,2]
[333081682,1721848243368,-500.0,0.00013972,2]
[333081683,1721848243377,-500.0,0.00013972,2]
[333081685,1721848243387,-500.0,0.00013972,2]
[333081687,1721848243396,-500.0,0.00013972,2]
[333081688,1721848243405,-500.0,0.00013972,2]
[333081689,1721848243415,-500.0,0.00013972,2]
[333081690,1721848243424,-500.0,0.00013972,2]
[333081691,1721848243434,-500.0,0.00013972,2]
[333081692,1721848243444,-500.0,0.00013972,2]
[333081693,1721848243454,-500.0,0.00013972,2]
[333081694,1721848243464,-500.0,0.00013972,2]
[333081695,1721848243473,-500.0,0.00013972,2]
[333081696,1721848243482,-541.8536978,0.00013972,2]
[333081697,1721848243492,-500.0,0.00013972,2]
[333081698,1721848243503,-500.0,0.00013972,2]
[333081699,1721848243513,-500.0,0.00013972,2]
[333081700,1721848243523,-151.0,0.00013972,2]
[333081701,1721848243535,-151.0,0.00013972,2]
[333081702,1721848243545,-1337.0,0.00013972,2]
[333081703,1721848243554,-500.0,0.00013972,2]
[333081704,1721848243565,-500.0,0.00013972,2]
[333081706,1721848243574,-500.0,0.00013972,2]
[333081707,1721848243583,-319.68635329,0.00013972,2]
[333081708,1721848243593,-500.0,0.00013972,2]
[333081709,1721848243602,-547.68,0.00013972,2]
[333081710,1721848243611,-1376.31,0.00013972,2]
[333081711,1721848243621,-511.20157503,0.00013972,2]
[333081712,1721848243630,-500.0,0.00013972,2]
[333081713,1721848243639,-1101.02,0.00013972,2]
[333081714,1721848243650,-500.0,0.00013972,2]
[333081715,1721848243659,-588.69,0.00013972,2]
[333081716,1721848243668,-500.0,0.00013972,2]
[333081717,1721848243679,-500.0,0.00013972,2]
[333081718,1721848243688,-500.0,0.00013972,2]
[333081719,1721848243700,-500.0,0.00013972,2]
[333081720,1721848243709,-500.0,0.00013972,2]
[333081721,1721848243719,-623.42,0.00013972,2]
[333081722,1721848243728,-2251.49,0.00013972,2]
[333081723,1721848243738,-2906.9,0.00013972,2]
[333081724,1721848243748,-359.05493037,0.00013972,2]
[333081725,1721848243757,-2000.0,0.00013972,2]
[333081726,1721848243767,-500.0,0.00013972,2]
[333081727,1721848243775,-500.0,0.00013972,2]
[333081728,1721848243785,-500.0,0.00013972,2]
[333081730,1721848243794,-500.0,0.00013972,2]
[333081731,1721848243803,-595.66,0.00013972,2]
[333081733,1721848243813,-500.0,0.00013972,2]
[333081734,1721848243822,-508.97254975,0.00013972,2]
[333081735,1721848243831,-500.0,0.00013972,2]
[333081736,1721848243840,-705.07,0.00013972,2]
[333081737,1721848243849,-500.0,0.00013972,2]
[333081738,1721848243859,-500.0,0.00013972,2]
[333081739,1721848243869,-1177.43,0.00013972,2]
[333081740,1721848243878,-152.125492,0.00013972,2]
[333081741,1721848243887,-1812.31,0.00013972,2]
[333081742,1721848243900,-500.0,0.00013972,2]
[333081743,1721848243910,-1369.34,0.00013972,2]
[333081744,1721848243921,-1579.31,0.00013972,2]
[333081745,1721848243932,-500.0,0.00013972,2]
[333081746,1721848243942,-234.57271414,0.00013972,2]
[333081747,1721848243952,-518.12237967,0.00013972,2]
[333081748,1721848243961,-500.0,0.00013972,2]
[333081749,1721848243971,-1028.89,0.00013972,2]
[333081750,1721848243982,-500.0,0.00013972,2]
[333081751,1721848243991,-500.0,0.00013972,2]
[333081752,1721848244002,-500.0,0.00013972,2]
[333081753,1721848244013,-500.0,0.00013972,2]
[333081754,1721848244023,-500.0,0.00013972,2]
[333081755,1721848244032,-500.0,0.00013972,2]
[333081756,1721848244042,-695.51,0.00013972,2]
[333081757,1721848244051,-648.43,0.00013972,2]
[333081758,1721848244060,-505.25,0.00013972,2]
[333081759,1721848244070,-500.0,0.00013972,2]
[333081760,1721848244079,-500.0,0.00013972,2]
[333081761,1721848244088,-1656.58,0.00013972,2]
[333081762,1721848244098,-1824.45,0.00013972,2]
[333081763,1721848244107,-500.0,0.00013972,2]
[333081764,1721848244116,-500.0,0.00013972,2]
[333081765,1721848244125,-984.16,0.00013972,2]
[333081766,1721848244134,-500.0,0.00013972,2]
[333081767,1721848244143,-500.0,0.00013972,2]
[333081768,1721848244153,-500.0,0.00013972,2]
[333081769,1721848244162,-1520.4,0.00013972,2]
[333081770,1721848244174,-609.45168929,0.00013972,2]
[333081771,1721848244187,-500.0,0.00013972,2]
[333081772,1721848244200,-712.45,0.00013972,2]
[333081773,1721848244209,-151.0,0.00013972,2]
[333081774,1721848244219,-217.745452,0.00013972,2]
[333081775,1721848244228,-500.0,0.00013972,2]
[333081776,1721848244237,-1587.24,0.00013972,2]
[333081777,1721848244245,-500.0,0.00013972,2]
[333081778,1721848244255,-521.9,0.00013972,2]
[333081779,1721848244263,-500.0,0.00013972,2]
[333081780,1721848244273,-656.66,0.00013972,2]
[333081781,1721848244283,-779.58,0.00013972,2]
[333081782,1721848244293,-530.71,0.00013972,2]
[333081783,1721848244303,-500.0,0.00013972,2]
[333081784,1721848244312,-500.0,0.00013972,2]
[333081785,1721848244322,-549.87,0.00013972,2]
[333081786,1721848244332,-500.0,0.00013972,2]
[333081787,1721848244341,-500.0,0.00013972,2]
[333081788,1721848244351,-500.0,0.00013972,2]
[333081789,1721848244360,-500.0,0.00013972,2]
[333081790,1721848244370,-652.79,0.00013972,2]
[333081791,1721848244379,-500.0,0.00013972,2]
[333081792,1721848244389,-500.0,0.00013972,2]
[333081793,1721848244398,-1699.57,0.00013972,2]
[333081794,1721848244407,-1179.92,0.00013972,2]
[333081795,1721848244417,-2171.34,0.00013972,2]
[333081796,1721848244427,-1387.81,0.00013972,2]
[333081797,1721848244436,-500.0,0.00013972,2]
[333081798,1721848244445,-2008.3,0.00013972,2]
[333081799,1721848244455,-617.23,0.00013972,2]
[333081800,1721848244464,-500.0,0.00013972,2]
[333081801,1721848244474,-500.0,0.00013972,2]
[333081802,1721848244483,-500.0,0.00013972,2]
[333081803,1721848244493,-798.1,0.00013972,2]
[333081804,1721848244502,-500.0,0.00013972,2]
[333081805,1721848244512,-500.0,0.00013972,2]
[333081806,1721848244521,-500.0,0.00013972,2]
[333081807,1721848244531,-500.0,0.00013972,2]
[333081808,1721848244541,-2025.58,0.00013972,2]
[333081809,1721848244551,-500.0,0.00013972,2]
[333081810,1721848244561,-723.77,0.00013972,2]
[333081811,1721848244571,-2323.19,0.00013972,2]
[333081812,1721848244580,-151.0,0.00013972,2]
[333081813,1721848244589,-227.16455224,0.00013972,2]
[333081814,1721848244599,-598.67,0.00013972,2]
[333081815,1721848244608,-500.0,0.00013972,2]
[333081816,1721848244619,-4404.28,0.00013972,2]
[333081817,1721848244628,-334.8116071,0.00013972,2]
[333081818,1721848244637,-10454.79,0.00013972,2]
[333081819,1721848244646,-737.83,0.00013972,2]
[333081820,1721848244656,-1394.13,0.00013972,2]
[333081821,1721848244666,-1673.72,0.00013972,2]
[333081822,1721848244675,-2341.68,0.00013972,2]
[333081823,1721848244685,-1044.5,0.00013972,2]
[333081824,1721848244694,-884.56,0.00013972,2]
[333081825,1721848244703,-500.0,0.00013972,2]
[333081826,1721848244712,-500.0,0.00013972,2]
[333081827,1721848244722,-500.0,0.00013972,2]
[333081828,1721848244731,-500.0,0.00013972,2]
[333081829,1721848244740,-500.0,0.00013972,2]
[333081830,1721848244750,-733.27,0.00013972,2]
[333081831,1721848244759,-500.0,0.00013972,2]
[333081832,1721848244768,-2930.93,0.00013972,2]
[333081833,1721848244778,-500.0,0.00013972,2]
[333081834,1721848244787,-500.0,0.00013972,2]
[333081835,1721848244796,-1837.91,0.00013972,2]
[333081836,1721848244806,-500.0,0.00013972,2]
[333081837,1721848244815,-831.54,0.00013972,2]
[333081838,1721848244824,-500.0,0.00013972,2]
[333081839,1721848244833,-545.85,0.00013972,2]
[333081840,1721848244843,-500.0,0.00013972,2]
[333081841,1721848244852,-500.0,0.00013972,2]
[333081842,1721848244863,-500.0,0.00013972,2]
[333081843,1721848244872,-500.0,0.00013972,2]
[333081844,1721848244882,-1617.6,0.00013972,2]
[333081845,1721848244896,-457.65884256,0.00013972,2]
[333081846,1721848244905,-183.20573,0.00013972,2]
[333081847,1721848244914,-183.20573,0.00013972,2]
[333081848,1721848244924,-183.20573,0.00013972,2]
[333081849,1721848244936,-183.20573,0.00013972,2]
[333081850,1721848244945,-183.20573,0.00013972,2]
[333081851,1721848244954,-3940.69,0.00013972,2]
[333081852,1721848244964,-183.20573,0.00013972,2]
[333081853,1721848244974,-500.0,0.00013972,2]
[333081854,1721848244983,-500.0,0.00013972,2]
[333081855,1721848244993,-500.0,0.00013972,2]
[333081856,1721848245002,-500.0,0.00013972,2]
[333081857,1721848245012,-697.14,0.00013972,2]
[333081858,1721848245021,-2773.96,0.00013972,2]
[333081859,1721848245030,-500.0,0.00013972,2]
[333081860,1721848245040,-662.28,0.00013972,2]
[333081861,1721848245049,-500.0,0.00013972,2]
[333081862,1721848245059,-504.59,0.00013972,2]
[333081863,1721848245068,-6581.99,0.00013972,2]
[333081864,1721848245077,-1071.99,0.00013972,2]
[333081865,1721848245087,-2421.84,0.00013972,2]
[333081866,1721848245095,-775.38,0.00013972,2]
[333081867,1721848245105,-500.0,0.00013972,2]
[333081868,1721848245114,-151.0,0.00013972,2]
[333081869,1721848245123,-151.0,0.00013972,2]
[333081870,1721848245133,-151.0,0.00013972,2]
[333081871,1721848245143,-2736.71,0.00013972,2]
[333081872,1721848245152,-3002.09,0.00013972,2]
[333081873,1721848245162,-4063.2,0.00013972,2]
[333081874,1721848245171,-10382.21,0.00013972,2]
[333081875,1721848245181,-619.02,0.00013972,2]
[333081876,1721848245191,-500.0,0.00013972,2]
[333081877,1721848245200,-500.0,0.00013972,2]
[333081878,1721848245209,-733.75,0.00013972,2]
[333081879,1721848245218,-423.36915554,0.00013972,2]
[333081880,1721848245228,-151.0,0.00013972,2]
[333081881,1721848245237,-151.0,0.00013972,2]
[333081882,1721848245246,-582.43,0.00013972,2]
[333081883,1721848245255,-151.0,0.00013972,2]
[333081884,1721848245264,-500.0,0.00013972,2]
[333081885,1721848245274,-500.0,0.00013972,2]
[333081886,1721848245283,-1579.47,0.00013972,2]
[333081887,1721848245293,-1859.31,0.00013972,2]
[333081888,1721848245302,-791.29,0.00013972,2]
[333081889,1721848245312,-1825.95,0.00013972,2]
[333081890,1721848245321,-1907.56,0.00013972,2]
[333081891,1721848245331,-822.17,0.00013972,2]
[333081892,1721848245340,-4349.14,0.00013972,2]
[333081893,1721848245350,-500.0,0.00013972,2]
[333081894,1721848245360,-1052.95,0.00013972,2]
[333081895,1721848245369,-500.0,0.00013972,2]
[333081896,1721848245378,-395.57400265,0.00013972,2]
[333081897,1721848245387,-500.0,0.00013972,2]
[333081898,1721848245397,-500.0,0.00013972,2]
[333081899,1721848245406,-500.0,0.00013972,2]
[333081900,1721848245415,-1196.34,0.00013972,2]